Cogmind - Beta 13 @@@ ROGUE MODE // 2024.04.07 @ 20:12:33 Player: Frog Result: Destroyed by G-47 Trooper with Particle Gun Performance ------------- Evolutions (3) 1500 Regions Visited (5) 1000 Robots Destroyed (13) 65 Value Destroyed (309) 309 Prototype IDs (2) 40 Alien Tech Used (0) 0 Bonus (0) 0 TOTAL SCORE: 2914 Bonus ------- None Cogmind --------- Core Integrity 0/700 Matter 203/300 Energy 77/100 System Corruption 1% Temperature Cool (9) Movement Walking (120) Location -7/Factory Parts ------- > --- POWER (3) -------- (None) > --- PROPULSION (4) --- Carbon-fiber Leg > --- UTILITY (4) ------ Improved Sensor Array Improved Targeting Computer Core Analyzer System Shield > --- WEAPON (2) ------- (None) > --- INVENTORY (5) ---- Thermal Generator Peak State ------------ > --- POWER ------------ Heavy Deuterium Engine > --- PROPULSION ------- Armored Huge Wheel Armored Huge Wheel > --- UTILITY ---------- Cryofiber Web Improved Sensor Array Improved Targeting Computer System Shield > --- WEAPON ----------- Plasma Cannon > --- INVENTORY -------- Light Nuclear Core Micro Nuclear Core Cesium-ion Thruster [Rating: 37] Favorites ----------- Power Light Ion Engine Engine Light Ion Engine Power Core Light Nuclear Core Propulsion Improved Carbon-fiber Leg Treads Light Treads Leg Improved Carbon-fiber Leg Wheel Armored Huge Wheel Hover Unit Improved Hover Unit Flight Unit Cesium-ion Thruster Utility Hardened Medium Armor Plating Device Improved Sensor Array Processor Improved Targeting Computer Hackware System Shield Protection Hardened Medium Armor Plating Weapon Plasma Cannon Energy Gun Medium Laser Energy Cannon Plasma Cannon Ballistic Cannon Improved Light Cannon Special Melee Weapon Datajack Build | -11 -10 -10 -9 -8 -7 ------- Run | Yrd Mat Min Mat Mat Fac Slots Evolved 6 | . . . 2 2 2 Power 2 | . . . . 1 1 Propulsion 2 | . . . 2 . . Utility 2 | . . . . 1 1 Weapon . | . . . . . . Parts Attached 56 | 5 7 . 7 17 20 Power 15 | 1 2 . 2 2 8 Engine 10 | 1 2 . 2 1 4 Core 5 | . . . . 1 4 Reactor . | . . . . . . Propulsion 18 | 2 3 . 2 5 6 Treads 3 | . . . 2 1 . Leg 7 | . 1 . . 4 2 Wheel 4 | 2 . . . . 2 Hover 2 | . 2 . . . . Flight 2 | . . . . . 2 Utility 13 | . 1 . 1 6 5 Device 5 | . 1 . . 3 1 Storage . | . . . . . . Processor 2 | . . . . . 2 Hackware 1 | . . . . . 1 Protection 5 | . . . 1 3 1 Artifact . | . . . . . . Weapon 10 | 2 1 . 2 4 1 Energy Gun 4 | 2 . . 1 1 . Energy Cannon 4 | . 1 . . 2 1 Ballistic Gun . | . . . . . . Ballistic Cannon 1 | . . . 1 . . Launcher . | . . . . . . Special Weapon . | . . . . . . Impact Weapon . | . . . . . . Slashing Weapon . | . . . . . . Piercing Weapon . | . . . . . . Special Melee Weapon 1 | . . . . 1 . Unidentified Prototypes 2 | . . . 1 . 1 Parts Lost 28 | . . . 8 8 12 Power 9 | . . . 3 1 5 Propulsion 11 | . . . 2 4 5 Utility 5 | . . . 2 1 2 Weapon 3 | . . . 1 2 . Highest Loss Streak 7 | . . . 4 7 4 To Critical Strikes . | . . . . . . Average Slot Usage (%) 61 | . 77 85 46 83 48 Engine 7 | . 12 14 8 8 4 Core 3 | . . . . 7 3 Treads 1 | . . . 10 . . Leg 6 | . . . . 28 . Wheel 3 | . 6 . . . 5 Hover 4 | . 20 28 8 . . Device 10 | . 8 14 7 7 12 Processor 2 | . . . . . 6 Hackware 1 | . . . . . 3 Protection 4 | . . . 1 13 2 Energy Gun 3 | . 18 14 . 2 . Energy Cannon 6 | . 9 14 2 9 3 Ballistic Cannon 1 | . . . 6 . . Special Melee Weapon 1 | . . . . 4 . Naked Turns . | . . . . . . Heaviest Build 36 | 6 13 13 14 36 28 Greatest Support 72 | 20 20 14 40 72 56 Greatest Overweight (x) 8 | . 1 . . 5 8 Average Overweight (x) . | . . . . . . Largest Inventory Capacity 5 | 5 5 5 5 5 5 Average Capacity 5 | 5 5 5 5 5 5 Most Carried 5 | 3 5 3 5 5 5 Average Carried 2 | . 3 3 3 3 2 Final Capacity 5 | 5 5 5 5 5 5 Final Carried 4 | 3 3 3 2 4 1 Class Distribution -------------------- 100% | Mutant Dominant Class ---------------- Mutant | -10/Materials Mutant | -10/Mines Mutant | -9/Materials Mutant | -8/Materials Mutant | -7/Factory Resources | -11 -10 -10 -9 -8 -7 ----------- Run | Yrd Mat Min Mat Mat Fac Matter Collected 631 | 250 70 . 47 165 99 Remotely . | . . . . . . Salvage Created 401 | 50 . 49 38 165 99 Parts 30 | 3 . 3 6 14 4 Haulers Intercepted . | . . . . . . Recyclers Shooed . | . . . . . . Parts Field Recycled . | . . . . . . Retrieved Matter . | . . . . . . Parts Self-Destructed . | . . . . . . Prevented . | . . . . . . Kills | -11 -10 -10 -9 -8 -7 ------- Run | Yrd Mat Min Mat Mat Fac Combat Hostiles Destroyed 8 | 1 . 1 4 . 2 Guns 1 | 1 . . . . . Cannons 7 | . . 1 4 . 2 Classes Destroyed 9 | 1 . 1 2 4 1 Builder 1 | . . . . 1 . Tunneler 1 | . . 1 . . . Recycler 1 | . . . . 1 . Operator 1 | . . . . 1 . Watcher 1 | . . . . 1 . Swarmer 3 | . . . 3 . . Grunt 3 | 1 . 1 . . 1 Sentry 1 | . . . 1 . . Programmer 1 | . . . . . 1 Best Kill Streak 3 | 1 . 2 3 1 1 Combat Bots Only 3 | 1 . 1 3 . 1 Max Kills in Single Turn 1 | 1 . 1 1 1 1 Gunslinging . | . . . . . . Exploded . | . . . . . . Melee . | . . . . . . Uniques/NPCs Destroyed . | . . . . . . Combat | -11 -10 -10 -9 -8 -7 -------- Run | Yrd Mat Min Mat Mat Fac Hostile Shots Fired 618 | 4 1 7 98 163 345 Missed 253 | 2 1 3 31 62 154 Damage Taken 4506 | 24 . 58 870 1587 1967 Core 1095 | 12 . 28 211 139 705 Absorbed by Shields 26 | . . . . 26 . Ignored by Resistances 14 | . . . . 14 . Regen/Repaired (Parts) 12 | . 12 . . . . Core Remaining (%) 75 | 95 . 84 47 74 . Volleys Fired 61 | 3 3 3 34 10 8 Largest 2 | 2 2 2 2 2 1 Hottest 136 | 90 90 106 106 136 80 Shots Fired 78 | 6 6 6 37 15 8 Gun 20 | 6 6 3 3 2 . Cannon 58 | . . 3 34 13 8 Launcher . | . . . . . . Special . | . . . . . . Kinetic 30 | . . . 30 . . Thermal 36 | 6 6 3 3 10 8 Explosive . | . . . . . . Electromagnetic 12 | . . 3 4 5 . Robot Hit Streak 6 | 2 1 6 5 4 4 Robot Miss Streak 5 | 2 1 . 3 5 2 Penetration Max . | . . . . . . Secondary Targets . | . . . . . . Shots Hit Robots 45 | 3 2 5 21 9 5 Core Hits 20 | 2 . 2 5 5 6 Critical Kills . | . . . . . . Critical Parts Destroyed . | . . . . . . Critical Strikes 3 | . . . 3 . . Blast 2 | . . . 2 . . Corrupt 1 | . . . 1 . . Melee Attacks 1 | . . . . 1 . Impact . | . . . . . . Slashing . | . . . . . . Piercing . | . . . . . . Sneak Attacks . | . . . . . . Combat Hostiles . | . . . . . . Follow-up Attacks . | . . . . . . Damage Inflicted 1013 | 33 20 87 471 221 181 Guns 103 | 33 20 37 13 . . Cannons 879 | . . 50 458 202 169 Explosions . | . . . . . . Melee . | . . . . . . Ramming 31 | . . . . 19 12 Kinetic 406 | . . . 406 . . Thermal 396 | 33 20 37 13 124 169 Explosive . | . . . . . . Electromagnetic 180 | . . 50 52 78 . Impact . | . . . . . . Slashing . | . . . . . . Piercing . | . . . . . . Highest Corruption 1 | . . . . . 1 Average Corruption 1 | . . . . . 1 Corruption Purged . | . . . . . . Corruption Blocked . | . . . . . . Effects 2 | . . . . . 2 Matter Fused 1 | . . . . . 1 Parts Rejected 1 | . . . . . 1 Overload Shots . | . . . . . . Overflow Damage 3 | . . . 3 . . Projectiles 3 | . . . 3 . . Explosions . | . . . . . . Melee . | . . . . . . Knockbacks 2 | . . . 2 . . Impact . | . . . . . . Kinetic 2 | . . . 2 . . Secondary . | . . . . . . Self-Inflicted Damage 5 | . . . . . 5 Shots . | . . . . . . Rammed 3 | . . . . . 3 Targets Rammed 6 | . . . . 3 3 Kicked 3 | . . . . 3 . Crushed . | . . . . . . Highest Temperature 295 | 102 70 173 128 295 125 Average Temperature 110 | 53 40 104 46 151 66 Received Heat Transfer 1617 | 12 . 36 390 537 642 Effects 2 | . . . . 2 . Energy Bleed 2 | . . . . 2 . Siege Activations . | . . . . . . Robots Corrupted . | . . . . . . Combat Hostiles . | . . . . . . Parts Fried . | . . . . . . Impact Corruptions . | . . . . . . Robots Melted . | . . . . . . Combat Hostiles . | . . . . . . Parts Melted 1 | . . . . . 1 Heat Transferred 835 | 87 50 111 37 250 300 Parts Sabotaged . | . . . . . . Parts Stolen . | . . . . . . Parts Stripped . | . . . . . . Power Chain Reactions . | . . . . . . Alert | -11 -10 -10 -9 -8 -7 ------- Run | Yrd Mat Min Mat Mat Fac Peak Influence 325 | 20 28 50 161 153 325 Initial 48 | . 13 10 19 48 37 Average 71 | 4 27 29 95 82 79 Maximum Alert Level 1 | . . . . . 1 Low Security (%) 95 | 100 100 100 100 100 89 Level 1 4 | . . . . . 10 Level 2 . | . . . . . . Level 3 . | . . . . . . Level 4 . | . . . . . . Level 5 . | . . . . . . High Security . | . . . . . . Max Security . | . . . . . . Squads Dispatched 7 | . 2 . 2 1 2 Investigation 1 | . 1 . . . . Extermination 1 | . . . . . 1 Reinforcement 5 | . 1 . 2 1 1 Assault . | . . . . . . Garrison . | . . . . . . Intercept . | . . . . . . Searches Triggered . | . . . . . . Construction Impeded . | . . . . . . Haulers Reinforced . | . . . . . . Active Scanning Responses . | . . . . . . Cargo Convoy Interrupts . | . . . . . . Stealth | -11 -10 -10 -9 -8 -7 --------- Run | Yrd Mat Min Mat Mat Fac Distress Signals 2 | . . . 1 . 1 Communications Jammed . | . . . . . . Distress Signals . | . . . . . . Times Spotted 76 | 1 3 3 17 24 28 Peak Tracking Total 15 | 1 2 4 6 15 8 Tactical Retreats 15 | . 1 1 3 2 8 Traps | -11 -10 -10 -9 -8 -7 ------- Run | Yrd Mat Min Mat Mat Fac Traps Triggered 1 | . 1 . . . . Indirectly . | . . . . . . Trap Hack Attempts . | . . . . . . Triggered . | . . . . . . Disarmed . | . . . . . . Reprogrammed . | . . . . . . Reused . | . . . . . . Traps Extracted . | . . . . . . Installed . | . . . . . . Triggered . | . . . . . . Machines | -11 -10 -10 -9 -8 -7 ---------- Run | Yrd Mat Min Mat Mat Fac Machines Disabled . | . . . . . . Max in Single Turn . | . . . . . . Machines Repaired . | . . . . . . Machines Dismantled . | . . . . . . Machines Sabotaged . | . . . . . . Overloaded Fab Kills . | . . . . . . Hacking | -11 -10 -10 -9 -8 -7 --------- Run | Yrd Mat Min Mat Mat Fac Machines Accessed 1 | . 1 . . . . Terminals . | . . . . . . Fabricators . | . . . . . . Repair Stations 1 | . 1 . . . . Recycling Units . | . . . . . . Scanalyzers . | . . . . . . Garrison Access . | . . . . . . Total Hacks 2 | . 2 . . . . Successful 2 | . 2 . . . . Failed . | . . . . . . Catastrophic . | . . . . . . Database Lockouts . | . . . . . . Manual . | . . . . . . Terminals . | . . . . . . Fabricators . | . . . . . . Repair Stations 2 | . 2 . . . . Recycling Units . | . . . . . . Scanalyzers . | . . . . . . Garrison Access . | . . . . . . Terminal Hacks . | . . . . . . Fabricator Hacks . | . . . . . . Repair Station Hacks 2 | . 2 . . . . Scan Component 1 | . 1 . . . . Repair 1 | . 1 . . . . Recycling Unit Hacks . | . . . . . . Scanalyzer . | . . . . . . Garrison Access Hacks . | . . . . . . Unauthorized Hacks . | . . . . . . Terminals . | . . . . . . Fabricators . | . . . . . . Repair Stations . | . . . . . . Recycling Units . | . . . . . . Scanalyzers . | . . . . . . Garrison Access . | . . . . . . Data Cores Recovered 1 | . . . . 1 . Used . | . . . . . . Hacking Detections . | . . . . . . Full Trace Events . | . . . . . . Feedback Events . | . . . . . . Feedback Blocked . | . . . . . . Robot Schematics Acquired . | . . . . . . Robots Built . | . . . . . . Authchips . | . . . . . . Time . | . . . . . . Total Robot Build Rating . | . . . . . . Part Schematics Acquired . | . . . . . . Parts Built . | . . . . . . Authchips . | . . . . . . Time . | . . . . . . Total Part Build Rating . | . . . . . . Parts Repaired 1 | . 1 . . . . Time 26 | . 26 . . . . Parts Recycled . | . . . . . . Recycled Matter . | . . . . . . Retrieved Matter . | . . . . . . Retrieved Components . | . . . . . . Parts Scanalyzed . | . . . . . . Part Schematics Acquired . | . . . . . . Parts Damaged . | . . . . . . Bothacking | -11 -10 -10 -9 -8 -7 ------------ Run | Yrd Mat Min Mat Mat Fac Used RIF Installer . | . . . . . . Robots Hacked 1 | . . . . 1 . Non-combat . | . . . . . . Combat 1 | . . . . 1 . Robot Hacks Applied 1 | . . . . 1 . parse_system 1 | . . . . 1 . Relay Couplers Released . | . . . . . . Fabnet Peak Effective % . | . . . . . . Robots Rewired . | . . . . . . Allies Hacked . | . . . . . . Hacks Repelled . | . . . . . . Allies | -11 -10 -10 -9 -8 -7 -------- Run | Yrd Mat Min Mat Mat Fac Total Allies . | . . . . . . Largest Group . | . . . . . . Highest-Rated Group . | . . . . . . Highest-Rated Ally . | . . . . . . Total Orders . | . . . . . . Ally Attacks . | . . . . . . Total Damage . | . . . . . . Kills . | . . . . . . Allies Corrupted . | . . . . . . Allies Melted . | . . . . . . Intel | -11 -10 -10 -9 -8 -7 ------- Run | Yrd Mat Min Mat Mat Fac Robot Analysis Total . | . . . . . . Derelict Logs Recovered 1 | . . 1 . . . Drone Launches . | . . . . . . Drone Recoveries . | . . . . . . Exploration | -11 -10 -10 -9 -8 -7 ------------- Run | Yrd Mat Min Mat Mat Fac Turns Passed 1705 | 63 248 34 262 369 729 Spaces Moved 1640 | 57 227 44 175 241 896 Core 46 | 16 3 . . 5 22 Treads 92 | . . . 74 18 . Legs 246 | . . . . 218 28 Wheels 455 | 41 59 . . . 355 Hover 310 | . 165 44 101 . . Flight 491 | . . . . . 491 Fastest Speed 35 | 50 56 56 56 100 35 Average Speed 82 | 71 62 56 99 124 73 Slowest Speed 450 | 80 100 56 160 300 450 Overloaded Moves . | . . . . . . Propulsion Burnouts . | . . . . . . Robots Hopped 2 | . . . . . 2 Cave-ins Triggered . | . . . . . . Exploration Rate (%) 25 | 5 33 28 29 28 32 Regions Visited 5 Branch Regions 1 Pre-discovered Areas . | . . . . . . Known Exits Taken . | . . . . . . Unknown Exits Taken 5 | 1 1 1 1 1 . Scrap Searched . | . . . . . . Spaces Dug . | . . . . . . Terrain Destroyed 4 | . . . 1 3 . Melee . | . . . . . . Projectile 4 | . . . 1 3 . AOE . | . . . . . . Terrain Rammed . | . . . . . . Walls Destroyed . | . . . . . . Machines Disabled . | . . . . . . Actions | -11 -10 -10 -9 -8 -7 --------- Run | Yrd Mat Min Mat Mat Fac Total 1930 | 72 331 46 229 296 956 Wait 82 | . 73 . 1 . 8 Move 1631 | 56 226 43 174 240 892 Hop 2 | . . . . . 2 Pick Up 58 | 8 11 . 6 17 16 Fast Attach . | . . . . . . Attach 56 | 5 7 . 7 17 20 Detach 12 | . 2 . 3 3 4 Swap . | . . . . . . Drop 21 | . 9 . 4 5 3 Fire 61 | 3 3 3 34 10 8 Melee 1 | . . . . 1 . Ram 3 | . . . . . 3 Kick 3 | . . . . 3 . Crush . | . . . . . . Escape Stasis . | . . . . . . Rewire . | . . . . . . Trap . | . . . . . . Miscellaneous . | . . . . . . Route ------- -11/Scrapyard -10/Materials -10/Mines -9/Materials -8/Materials -7/Factory History --------- Turn | Location | Event 2 | -11/Scrapyard | Met Revision 17 40 | -11/Scrapyard | Discovered new exit (range 8) 64 | -11/Scrapyard | Entered Materials 195 | -10/Materials | Repaired Lgt. Ion Engine 303 | -10/Materials | Discovered new exit (range 16) 312 | -10/Materials | Entered Mines 314 | -10/Mines | Learned Materials stockpile data 317 | -10/Mines | Build established: Mutant 340 | -10/Mines | Discovered new exit (range 10) 346 | -10/Mines | Entered Materials 346 | -9/Materials | Evolved 2 slots: Propulsion x2 542 | -9/Materials | Lost 4 parts (2p2u) 596 | -9/Materials | Core integrity fell below 50% 598 | -9/Materials | Lost 3 parts (1p1n1w) 605 | -9/Materials | Discovered new exit (range 3) 608 | -9/Materials | Entered another Materials area 608 | -8/Materials | Evolved 2 slots: Power x1, Utility x1 949 | -8/Materials | Discovered new exit (range 16) 977 | -8/Materials | Entered Factory 977 | -7/Factory | Evolved 2 slots: Power x1, Utility x1 1006 | -7/Factory | Lost 7 parts (1p3n1u2w) 1490 | -7/Factory | Core integrity fell below 50% 1517 | -7/Factory | Lost 4 parts (1p2n1u) 1687 | -7/Factory | Core integrity fell below 20% 1706 | -7/Factory | Destroyed by G-47 Trooper with Particle Gun Last Messages --------------- K-01 Serf cleans the Manufacturing Mainframe. K-01 Serf cleans the Pressure Siphon. Penetrated by Slug. Cesium-ion Thruster destroyed. Acquired Imp. Titanium Leg. Acquired Hvy. Laser. Acquired Thermal Generator. Dropped Hvy. Laser. Acquired Core Analyzer. System corrupted: Matter fused (-7). Critical hit (Burn: +37). Drone sends a signal. H-55 Commando retrieves Drone. K-01 Serf cleans the Power Conduit. Cesium-ion Thruster destroyed. Lgt. Nuclear Core destroyed. Mic. Nuclear Core destroyed. L-41 Fighter destroyed. Acquired Carbon-fiber Leg. Imp. Titanium Leg destroyed. Map ----- +----------------------------------------------------+ | "T # #?# ## #?????????? | | "" # """"""""" #?# ## #?????????? | | "" # #?# ## #????###### | | # #?# ## #????# | | ##### #?# ## #????# #### | | ????########## #?# ##^^ ###### #??? | | ?????????????# #?# ## #??? | | ?????????????# #?# ## ########??? | | ?????????????# #?# ## #?????????? | | #####????????# #?# ## #?????????? | | #????????# #?# ## #?????????? | | ########?# #?# ## #?????????? | | # #?# #?# ## #?????????? | | # ### ### ## #?????????? | | # # ####+###### #?????????? | | " # # #?????????? | | " # # g #?????????? | | " # # ? g #?????????? | | " # + ! r #?????????? | | " # # % #?????????? | | # # #?????????? | | # # #?????????? | | ##### # ### #?????????? | | ????# ###########?# ########### | | ????# #???????????# | | ????# #???????????# @ ####### | | ????#######????????????# #?????? | | ???????????????????????# #?????? | | #####??????????????????# #?????? | | #?????????????########+#############+########? | | #?????????????# #?""""" #? | | #?????????????# """ #?""T"" #? | | "" #?????????????# """"" # #? | | "" #?????????????# """"" # """"""""" #? | | "" #?????????????# ""T"" # #? | | #?????????????# """"" # #? | | ####??????????????###############################? | | | | | | | | | | | | | | | | | | | | | | | | | | | +----------------------------------------------------+ Best States ------------- Heat Dissipation 34 Energy Generation 28 Energy Capacity 360 Matter Stores 300 Matter Capacity 300 Sight Range 16 Robot Scan Range 15 Terrain Scan Density 10 ECM Strength 1 Base Temperature (-) 100 Armor Coverage 450 Resistance: KI 20 Evasion (%) 63 Targeting Accuracy 6 Core Analysis 6 Recoil Reduction 2 Defensive Hacking 10 Item Schematics ----------------- None Robot Schematics ------------------ None Fabricated ------------ Nothing Alien Tech Used ----------------- None Achievements -------------- Made in Tau Ceti IV Part-time Mechanic Risk Taker Storm Trooper Universal Adapter Challenges ------------ None Game ------ Seed NodeSpikedBank Manual? 0 Play Time 01:43:47 Cumulative 3.5 hours Start 2024.04.07 @ 18:06:23 End 2024.04.07 @ 20:12:33 Sessions 1 Manual Loads 0 Difficulty Rogue Special Mode None Game No. 3 Rogue 3 Adventurer 0 Explorer 0 Win Type - Total 0 Types 0/0/0/0/0/0/0/0/0 Lore% 0 Gallery% 4 Achievement% 3 Wizard Run 0 Options --------- Layout 1 ASCII 0 Keyboard 0 Movement Mouse Keybinds 0 Fullscreen 1 Font 24/Smallcaps Map View 50x35 Zoom Use 0% Tactical HUD 0 Map Filters NONE Filters NONE Steam 1 RUN: 74f601f9-bb14-404c-8b33-79b3fe0823f1